[Event "2nd Namma Bengaluru Open-A 2025"]
[Site "Bengaluru"]
[Date "2025.04.10"]
[Round "1.21"]
[White "Naga Sai Sarthak Karanam"]
[Black "Fedorov, Alexei"]
[Result "0-1"]
[Annotator "RC"]
[ECO "A53"]
[WhiteElo "2015"]
[BlackElo "2396"]
[PlyCount "80"]
[EventDate "2025.04.10"]
[EventType "swiss"]
[EventCountry "IND"]
[SourceTitle "playchess.com"]
[Source "ChessBase"]
[SourceQuality "1"]
[TimeControl "5400+30"]

1. d4 {[%emt 0:00:02]} Nf6 {[%emt 0:00:07]} 2. c4 {[%emt 0:00:06]} d6 {[%emt 0:00:10]} 3. Nc3 {[%emt 0:01:00]} e5 4. dxe5 {[%emt 0:03:20]} dxe5 {[%emt 0:00:12]} 5. Qxd8+ {[%emt 0:00:27]} Kxd8 {[%emt 0:00:07]} 6. Nf3 {[%emt 0:04:09]} Nc6 {[%emt 0:00:13]} 7. Bg5 {[%emt 0:01:08]} Be6 {[%emt 0:00:07]} 8. e3 {[%emt 0:01:08]} Kc8 {[%emt 0:01:29]} 9. Be2 {[%emt 0:07:10]} Bb4 {[%emt 0:01:53]} 10. Nd2 {[%emt 0:05:59]} Bxc3 {[%emt 0:00:30]} 11. bxc3 {[%emt 0:02:20]} Nd7 {[%emt 0:00:05]} 12. e4 {[%emt 0:01:42]} Nc5 {[%emt 0:01:24]} 13. O-O {[%emt 0:03:46]} Na4 {[%emt 0:03:04]} 14. Rfc1 {[%emt 0:01:21]} Na5 {[%emt 0:01:16]} 15. Rab1 {[%emt 0:02:19]} b6 {[%emt 0:01:49]} 16. Be3 {[%emt 0:07:31]} Rd8 {[%emt 0:03:34]} 17. c5 {[%emt 0:13:01]} Nxc5 {[%emt 0:03:30]} 18. Bxc5 {[%emt 0:04:43]} Rxd2 {[%emt 0:00:44]} 19. Ba6+ {[%emt 0:00:10]} Kd7 {[%emt 0:00:48]} 20. Bb4 {[%emt 0:07:27]} Bc4 {[%emt 0:02:37]} 21. Rd1 {[%emt 0:03:43]} Rxd1+ {[%emt 0:00:09]} 22. Rxd1+ {[%emt 0:00:05]} Ke8 {[%emt 0:00:27]} 23. Bxa5 {[%emt 0:00:25]} Bxa6 {[%emt 0:00:03]} 24. Bb4 {[%emt 0:00:05]} Bc4 {[%emt 0:01:42]} 25. Rd2 {[%emt 0:02:29]} c5 {[%emt 0:00:30]} 26. Ba3 {[%emt 0:00:26]} Rd8 {[%emt 0:00:07]} 27. Bc1 {[%emt 0:01:24]} Rxd2 {[%emt 0:00:19]} 28. Bxd2 {[%emt 0:00:03]} Bxa2 {[%emt 0:00:05]} 29. Kf1 {[%emt 0:00:05]} Bc4+ {[%emt 0:02:24]} 30. Ke1 {[%emt 0:00:05]} Kd7 {[%emt 0:00:01]} 31. g3 {[%emt 0:01:12]} a5 {[%emt 0:00:26]} 32. Kd1 {[%emt 0:00:05]} Bd3 {[%emt 0:00:58]} 33. f3 {[%emt 0:00:07]} b5 {[%emt 0:00:14]} 34. Be3 {[%emt 0:00:20]} Kc6 {[%emt 0:00:24]} 35. Kd2 {[%emt 0:00:08]} Bc4 {[%emt 0:01:21]} 36. f4 {[%emt 0:05:52]} b4 {[%emt 0:00:05]} 37. fxe5 {[%emt 0:00:27]} a4 {[%emt 0:00:06]} 38. Kc2 {[%emt 0:02:18]} a3 {[%emt 0:00:06]} 39. cxb4 {[%emt 0:00:38]} cxb4 {[%emt 0:00:03]} 40. Bd4 {[%emt 0:01:30]} b3+ {[%emt 0:00:16]} 0-1

[Event "2nd Namma Bengaluru Open-A 2025"]
[Site "Bengaluru"]
[Date "2025.04.10"]
[Round "1.22"]
[White "Deepan Chakkravarthy J."]
[Black "Nigash G"]
[Result "1-0"]
[Annotator "RC"]
[ECO "A06"]
[WhiteElo "2394"]
[BlackElo "2015"]
[PlyCount "111"]
[EventDate "2025.04.10"]
[EventType "swiss"]
[EventCountry "IND"]
[SourceTitle "playchess.com"]
[Source "ChessBase"]
[SourceQuality "1"]
[TimeControl "5400+30"]

1. Nf3 {[%emt 0:00:23]} d5 {[%emt 1:31:00]} 2. b3 c5 {[%emt 0:00:00]} 3. Bb2 {[%emt 0:00:13]} f6 4. e4 {[%emt 0:04:09]} dxe4 {[%emt 0:00:00]} 5. Nh4 {[%emt 0:00:02]} Be6 {[%emt 0:00:00]} 6. Bb5+ {[%emt 0:09:38]} Nd7 {[%emt 0:00:00]} 7. Qe2 {[%emt 0:03:31]} Qb6 {[%emt 0:00:00]} 8. Qxe4 {[%emt 0:02:02]} Qxb5 {[%emt 0:00:00]} 9. Qxe6 {[%emt 0:00:03]} Qb6 {[%emt 0:00:00]} 10. Qe2 {[%emt 0:02:55]} Nh6 {[%emt 0:00:00]} 11. Nc3 {[%emt 0:05:25]} e5 {[%emt 0:00:00]} 12. f4 {[%emt 0:02:43]} O-O-O {[%emt 0:00:00]} 13. f5 {[%emt 0:00:09]} Nb8 {[%emt 0:00:00]} 14. Qc4 {[%emt 0:07:33]} a6 {[%emt 0:00:00]} 15. O-O-O {[%emt 0:02:52]} Qc6 {[%emt 0:00:00]} 16. Ne4 {[%emt 0:00:49]} Nd7 {[%emt 0:00:00]} 17. Qe2 {[%emt 0:03:10]} Nb6 {[%emt 0:00:00]} 18. c4 {[%emt 0:01:46]} Na8 {[%emt 0:00:00]} 19. g4 {[%emt 0:00:36]} Nf7 {[%emt 0:00:00]} 20. Nf3 {[%emt 0:00:16]} Nd6 {[%emt 0:00:00]} 21. d3 {[%emt 0:00:20]} Nxe4 {[%emt 0:00:00]} 22. dxe4 {[%emt 0:00:47]} Rxd1+ {[%emt 0:00:00]} 23. Rxd1 {[%emt 0:00:08]} Be7 {[%emt 0:00:00]} 24. h4 {[%emt 0:10:14]} h6 {[%emt 0:00:00]} 25. Bc3 {[%emt 0:03:41]} Nc7 {[%emt 0:00:00]} 26. Kb2 {[%emt 0:02:40]} Rd8 {[%emt 0:00:00]} 27. Rxd8+ {[%emt 0:01:16]} Bxd8 {[%emt 0:00:00]} 28. Qd3 {[%emt 0:06:17]} Qd7 {[%emt 0:00:00]} 29. Kc2 {[%emt 0:02:17]} Qxd3+ {[%emt 0:00:00]} 30. Kxd3 {[%emt 0:00:03]} Kd7 {[%emt 0:00:00]} 31. g5 {[%emt 0:03:13]} hxg5 {[%emt 0:00:00]} 32. hxg5 {[%emt 0:00:07]} Ne8 {[%emt 0:00:00]} 33. Nh2 {[%emt 0:00:23]} Bc7 {[%emt 0:00:00]} 34. Ng4 {[%emt 0:01:09]} Ke7 {[%emt 0:00:00]} 35. g6 {[%emt 0:01:34]} Kd7 {[%emt 0:00:00]} 36. Be1 Ke7 {[%emt 0:00:00]} 37. Ne3 {[%emt 0:01:41]} Kd6 {[%emt 0:00:00]} 38. Nd5 {[%emt 0:01:33]} Bd8 39. b4 {[%emt 0:05:54]} b6 40. a4 a5 {[%emt 0:00:00]} 41. bxa5 {[%emt 0:00:33]} bxa5 {[%emt 0:00:00]} 42. Ne3 {[%emt 0:00:51]} Kd7 {[%emt 0:00:00]} 43. Ng4 {[%emt 0:00:02]} Kd6 {[%emt 0:00:17]} 44. Nh2 {[%emt 0:02:30]} Kd7 {[%emt 0:00:36]} 45. Nf3 {[%emt 0:00:21]} Kd6 {[%emt 0:00:19]} 46. Nd2 {[%emt 0:00:15]} Kc6 {[%emt 0:02:25]} 47. Nb3 {[%emt 0:00:11]} Nd6 {[%emt 0:00:17]} 48. Nxa5+ {[%emt 0:03:58]} Bxa5 {[%emt 0:00:19]} 49. Bxa5 {[%emt 0:00:03]} Nb7 {[%emt 0:00:14]} 50. Bc3 {[%emt 0:01:15]} Kd6 {[%emt 0:00:46]} 51. a5 {[%emt 0:01:26]} Nd8 {[%emt 0:00:16]} 52. a6 {[%emt 0:00:16]} Nc6 {[%emt 0:00:05]} 53. Ba5 {[%emt 0:01:47]} Kd7 {[%emt 0:00:45]} 54. Kc3 {[%emt 0:00:12]} Kc8 {[%emt 0:00:36]} 55. Bb6 {[%emt 0:00:04]} Nb4 {[%emt 0:00:21]} 56. a7 {[%emt 0:00:26]} 1-0

[Event "2nd Namma Bengaluru Open-A 2025"]
[Site "Bengaluru"]
[Date "2025.04.10"]
[Round "1.23"]
[White "Nandish V S"]
[Black "Hari Madhavan N B"]
[Result "1/2-1/2"]
[Annotator "RC"]
[ECO "D10"]
[WhiteElo "2014"]
[BlackElo "2393"]
[PlyCount "64"]
[EventDate "2025.04.10"]
[EventType "swiss"]
[EventCountry "IND"]
[SourceTitle "playchess.com"]
[Source "ChessBase"]
[SourceQuality "1"]
[TimeControl "5400+30"]

1. d4 {[%emt 1:31:00]} d5 2. c4 c6 3. cxd5 cxd5 4. Bf4 Nc6 5. e3 Nf6 6. Nc3 a6 7. Bd3 Bg4 8. Nge2 e6 9. f3 Bh5 10. O-O Bg6 11. Kh1 Bd6 12. Bg5 Nb4 13. e4 Nxd3 14. Qxd3 Be7 15. Nf4 Nh5 16. Bxe7 Nxf4 17. Qd2 Qxe7 18. Qxf4 dxe4 19. fxe4 O-O 20. a3 Rfd8 21. Rad1 Rac8 22. e5 Rd7 23. Qe3 Qd8 24. Rd2 Rc4 25. Rf4 b5 26. h3 h6 27. Kh2 Kh8 28. Qf2 Qb8 29. Qe3 a5 30. b3 Rc8 31. a4 bxa4 32. Nxa4 Kh7 1/2-1/2

[Event "2nd Namma Bengaluru Open-A 2025"]
[Site "Bengaluru"]
[Date "2025.04.10"]
[Round "1.24"]
[White "Panda Sambit"]
[Black "Rachit H Gurnani"]
[Result "1-0"]
[Annotator "RC"]
[ECO "D38"]
[WhiteElo "2391"]
[BlackElo "2014"]
[PlyCount "59"]
[EventDate "2025.04.10"]
[EventType "swiss"]
[EventCountry "IND"]
[SourceTitle "playchess.com"]
[Source "ChessBase"]
[SourceQuality "1"]
[TimeControl "5400+30"]

1. d4 {[%emt 0:00:30]} Nf6 {[%emt 0:00:30]} 2. c4 {[%emt 0:00:30]} e6 {[%emt 0:00:30]} 3. Nf3 {[%emt 0:00:30]} d5 {[%emt 0:00:30]} 4. Nc3 {[%emt 0:00:30]} Bb4 {[%emt 0:00:30]} 5. cxd5 {[%emt 0:00:30]} exd5 {[%emt 0:00:30]} 6. Bf4 {[%emt 0:00:30]} Nc6 {[%emt 0:00:30]} 7. a3 {[%emt 0:00:30]} Bxc3+ {[%emt 0:00:30]} 8. bxc3 {[%emt 0:00:30]} Ne4 {[%emt 0:00:30]} 9. Rc1 {[%emt 0:00:30]} g5 {[%emt 0:00:30]} 10. Be3 {[%emt 0:00:30]} f5 {[%emt 0:00:30]} 11. g3 {[%emt 0:00:30]} O-O {[%emt 0:00:30]} 12. Bg2 {[%emt 0:00:30]} f4 {[%emt 0:00:30]} 13. gxf4 {[%emt 0:00:30]} gxf4 {[%emt 0:00:30]} 14. Bd2 {[%emt 0:00:30]} Be6 {[%emt 0:00:30]} 15. O-O {[%emt 0:00:30]} Qf6 {[%emt 0:00:30]} 16. Ne1 {[%emt 0:00:30]} Rae8 {[%emt 0:00:30]} 17. Nd3 {[%emt 0:00:30]} Qh4 {[%emt 0:00:30]} 18. Kh1 {[%emt 0:00:30]} Rf6 {[%emt 0:00:30]} 19. Bxf4 {[%emt 0:00:30]} Rxf4 {[%emt 0:00:30]} 20. Nxf4 {[%emt 0:00:30]} Qxf4 {[%emt 0:00:30]} 21. f3 {[%emt 0:00:30]} Nd6 {[%emt 0:00:30]} 22. e4 {[%emt 0:00:30]} Nc4 {[%emt 0:00:30]} 23. Rg1 {[%emt 0:00:30]} Kh8 {[%emt 0:00:30]} 24. Qe2 {[%emt 0:00:30]} Rf8 {[%emt 0:00:30]} 25. Rcd1 {[%emt 0:00:30]} Ne3 {[%emt 0:00:30]} 26. Rde1 {[%emt 0:00:30]} Nxg2 {[%emt 0:00:30]} 27. Rxg2 {[%emt 0:00:30]} Qxf3 {[%emt 0:00:30]} 28. Qxf3 {[%emt 0:00:30]} Rxf3 {[%emt 0:00:30]} 29. exd5 {[%emt 0:00:30]} Bxd5 {[%emt 0:00:30]} 30. Re8+ {[%emt 0:00:30]} 1-0

[Event "2nd Namma Bengaluru Open-A 2025"]
[Site "Bengaluru"]
[Date "2025.04.10"]
[Round "1.25"]
[White "Chinmay Kowshik"]
[Black "Sammed Jaykumar, Shete"]
[Result "0-1"]
[Annotator "RC"]
[ECO "A56"]
[WhiteElo "2011"]
[BlackElo "2391"]
[PlyCount "83"]
[EventDate "2025.04.10"]
[EventType "swiss"]
[EventCountry "IND"]
[SourceTitle "playchess.com"]
[Source "ChessBase"]
[SourceQuality "1"]
[TimeControl "5400+30"]

1. d4 {[%emt 0:00:04]} Nf6 {[%emt 0:00:16]} 2. c4 c5 {[%emt 0:00:30]} 3. d5 e5 {[%emt 0:00:30]} 4. Nc3 d6 {[%emt 0:00:30]} 5. g3 Be7 {[%emt 0:00:30]} 6. Bg2 O-O {[%emt 0:00:30]} 7. e4 Na6 {[%emt 0:00:30]} 8. Nf3 Nc7 {[%emt 0:00:30]} 9. Qc2 Rb8 {[%emt 0:00:30]} 10. a4 b6 {[%emt 0:00:30]} 11. Na2 a6 {[%emt 0:00:30]} 12. b4 cxb4 {[%emt 0:00:30]} 13. Nxb4 Bd7 {[%emt 0:00:30]} 14. O-O Qe8 {[%emt 0:00:30]} 15. Ne1 a5 {[%emt 0:00:30]} 16. Nbd3 Na6 {[%emt 0:00:30]} 17. f4 exf4 {[%emt 0:00:30]} 18. gxf4 Qc8 {[%emt 0:00:30]} 19. Be3 Re8 {[%emt 0:00:30]} 20. Bd4 Bh3 {[%emt 0:00:30]} 21. Bxh3 Qxh3 {[%emt 0:00:30]} 22. Rf3 Qc8 {[%emt 0:00:30]} 23. Nf2 Nc5 {[%emt 0:00:30]} 24. e5 Ng4 {[%emt 0:00:30]} 25. Rg3 Bh4 {[%emt 0:00:30]} 26. e6 Bxg3 {[%emt 0:00:30]} 27. Nxg4 fxe6 {[%emt 0:00:30]} 28. hxg3 e5 {[%emt 0:00:30]} 29. Nxe5 dxe5 {[%emt 0:00:30]} 30. Bxe5 Rb7 {[%emt 0:00:30]} 31. Nf3 Qh3 {[%emt 0:00:30]} 32. Qg2 Qf5 {[%emt 0:00:30]} 33. Qe2 Qg6 {[%emt 0:00:30]} 34. Kh2 Rf7 {[%emt 0:00:30]} 35. Nh4 Qd3 {[%emt 0:00:30]} 36. Qxd3 Nxd3 {[%emt 0:00:30]} 37. Nf3 Rc8 {[%emt 0:00:30]} 38. Ra3 Nc5 {[%emt 0:00:30]} 39. Nd4 g5 {[%emt 0:00:30]} 40. Nc6 h6 {[%emt 0:00:30]} 41. Bd6 Re8 {[%emt 0:00:30]} 42. Be5 0-1

[Event "2nd Namma Bengaluru Open-A 2025"]
[Site "Bengaluru"]
[Date "2025.04.10"]
[Round "1.26"]
[White "Sathvik Adiga"]
[Black "Pragnya H G"]
[Result "1-0"]
[Annotator "RC"]
[ECO "B80"]
[WhiteElo "2390"]
[BlackElo "2011"]
[PlyCount "79"]
[EventDate "2025.04.10"]
[EventType "swiss"]
[EventCountry "IND"]
[SourceTitle "playchess.com"]
[Source "ChessBase"]
[SourceQuality "1"]
[TimeControl "5400+30"]

1. e4 {[%emt 0:00:05]} c5 2. Nf3 {[%emt 0:00:30]} d6 3. d4 {[%emt 0:00:30]} cxd4 4. Nxd4 {[%emt 0:00:30]} Nf6 5. Nc3 {[%emt 0:00:30]} a6 6. Be3 {[%emt 0:00:30]} e6 7. a3 {[%emt 0:00:30]} Be7 8. f3 {[%emt 0:00:30]} h5 9. Bc4 {[%emt 0:00:30]} Qc7 10. Bb3 {[%emt 0:00:30]} Nc6 11. Nxc6 {[%emt 0:00:30]} bxc6 12. Bf4 {[%emt 0:00:30]} e5 13. Bg5 {[%emt 0:00:30]} Be6 14. O-O {[%emt 0:00:30]} O-O 15. Kh1 {[%emt 0:00:30]} g6 16. Qe2 {[%emt 0:00:30]} Nh7 17. Bh6 {[%emt 0:00:30]} Rfd8 18. Rad1 {[%emt 0:00:30]} Bxb3 19. cxb3 {[%emt 0:00:30]} Ng5 20. f4 {[%emt 0:00:30]} exf4 21. Rxf4 {[%emt 0:00:30]} Ne6 22. Rf2 {[%emt 0:00:30]} Bf8 23. Bxf8 {[%emt 0:00:30]} Rxf8 24. Rdf1 {[%emt 0:00:30]} Qb6 25. Rd1 {[%emt 0:00:30]} Rad8 26. b4 {[%emt 0:00:30]} Qa7 27. Qd2 {[%emt 0:00:30]} Qe7 28. Qd3 {[%emt 0:00:30]} Nc7 29. Qc4 {[%emt 0:00:30]} d5 30. Qxc6 {[%emt 0:00:30]} dxe4 31. Re1 {[%emt 0:00:30]} Rd6 32. Qc4 {[%emt 0:00:30]} e3 33. Rf3 {[%emt 0:00:30]} Re6 34. Nd1 {[%emt 0:00:30]} Rd8 35. h3 {[%emt 0:00:30]} e2 36. Nc3 {[%emt 0:00:30]} Nb5 37. Nd5 {[%emt 0:00:30]} Qg5 38. Nf4 {[%emt 0:00:30]} Rd4 39. Nxe6 {[%emt 0:00:30]} Rxc4 40. Nxg5 {[%emt 0:00:30]} 1-0

[Event "2nd Namma Bengaluru Open-A 2025"]
[Site "Bengaluru"]
[Date "2025.04.10"]
[Round "1.27"]
[White "Dolas, Aarush"]
[Black "Harsh Suresh"]
[Result "0-1"]
[Annotator "RC"]
[ECO "B12"]
[WhiteElo "2009"]
[BlackElo "2389"]
[PlyCount "60"]
[EventDate "2025.04.10"]
[EventType "swiss"]
[EventCountry "IND"]
[SourceTitle "playchess.com"]
[Source "ChessBase"]
[SourceQuality "1"]
[TimeControl "5400+30"]

1. e4 {[%emt 0:00:30]} c6 {[%emt 0:00:30]} 2. d4 {[%emt 0:00:30]} d5 {[%emt 0:00:30]} 3. e5 {[%emt 0:00:30]} c5 {[%emt 0:00:30]} 4. Be3 {[%emt 0:00:30]} cxd4 {[%emt 0:00:30]} 5. Bxd4 {[%emt 0:00:30]} Nc6 {[%emt 0:00:30]} 6. Nf3 {[%emt 0:00:30]} Bg4 {[%emt 0:00:30]} 7. Be2 {[%emt 0:00:30]} e6 {[%emt 0:00:30]} 8. O-O {[%emt 0:00:30]} Nge7 {[%emt 0:00:30]} 9. h3 {[%emt 0:00:30]} Bxf3 {[%emt 0:00:30]} 10. Bxf3 {[%emt 0:00:30]} Qc7 {[%emt 0:00:30]} 11. Re1 {[%emt 0:00:30]} Nf5 {[%emt 0:00:30]} 12. c3 {[%emt 0:00:30]} Nfxd4 {[%emt 0:00:30]} 13. cxd4 {[%emt 0:00:30]} Qb6 {[%emt 0:00:30]} 14. Nc3 {[%emt 0:00:30]} Qxd4 {[%emt 0:00:30]} 15. Qc2 {[%emt 0:00:30]} Bb4 {[%emt 0:00:30]} 16. Rad1 {[%emt 0:00:30]} Qc5 {[%emt 0:00:30]} 17. Qb3 {[%emt 0:00:30]} Nd4 {[%emt 0:00:30]} 18. Rxd4 {[%emt 0:00:30]} Qxd4 {[%emt 0:00:30]} 19. Rd1 {[%emt 0:00:30]} Qb6 {[%emt 0:00:30]} 20. Qa4+ {[%emt 0:00:30]} Kf8 {[%emt 0:00:30]} 21. Rd3 {[%emt 0:00:30]} Rc8 {[%emt 0:00:30]} 22. Bg4 {[%emt 0:00:30]} Rc4 {[%emt 0:00:30]} 23. Qd1 {[%emt 0:00:30]} Bxc3 {[%emt 0:00:30]} 24. bxc3 {[%emt 0:00:30]} Qc7 {[%emt 0:00:30]} 25. Qb3 {[%emt 0:00:30]} g6 {[%emt 0:00:30]} 26. Qa3+ {[%emt 0:00:30]} Kg7 {[%emt 0:00:30]} 27. Qxa7 {[%emt 0:00:30]} Rxc3 {[%emt 0:00:30]} 28. Rxc3 {[%emt 0:00:30]} Qxc3 {[%emt 0:00:30]} 29. Qxb7 {[%emt 0:00:30]} h5 {[%emt 0:00:30]} 30. Bf3 {[%emt 0:00:30]} Qa1+ {[%emt 0:00:30]} 0-1

[Event "2nd Namma Bengaluru Open-A 2025"]
[Site "Bengaluru"]
[Date "2025.04.10"]
[Round "1.28"]
[White "Ajay Karthikeyan"]
[Black "Om Nagnath Lamkane"]
[Result "1-0"]
[Annotator "RC"]
[ECO "B38"]
[WhiteElo "2387"]
[BlackElo "2009"]
[PlyCount "87"]
[EventDate "2025.04.10"]
[EventType "swiss"]
[EventCountry "IND"]
[SourceTitle "playchess.com"]
[Source "ChessBase"]
[SourceQuality "1"]
[TimeControl "5400+30"]

1. d4 {[%emt 0:00:30]} Nf6 {[%emt 0:00:30]} 2. c4 {[%emt 0:00:30]} g6 {[%emt 0:00:30]} 3. f3 {[%emt 0:00:30]} Bg7 {[%emt 0:00:30]} 4. e4 {[%emt 0:00:30]} d6 {[%emt 0:00:30]} 5. Nc3 {[%emt 0:00:30]} O-O {[%emt 0:00:30]} 6. Be3 {[%emt 0:00:30]} c5 {[%emt 0:00:30]} 7. Nge2 {[%emt 0:00:30]} cxd4 {[%emt 0:00:30]} 8. Nxd4 {[%emt 0:00:30]} Nc6 {[%emt 0:00:30]} 9. Qd2 {[%emt 0:00:30]} Bd7 {[%emt 0:00:30]} 10. Be2 {[%emt 0:00:30]} Nxd4 {[%emt 0:00:30]} 11. Bxd4 {[%emt 0:00:30]} Bc6 {[%emt 0:00:30]} 12. Rc1 {[%emt 0:00:30]} Nd7 {[%emt 0:00:30]} 13. b4 {[%emt 0:00:30]} Bxd4 {[%emt 0:00:30]} 14. Qxd4 {[%emt 0:00:30]} Qb6 {[%emt 0:00:30]} 15. Qxb6 {[%emt 0:00:30]} Nxb6 {[%emt 0:00:30]} 16. Kd2 {[%emt 0:00:30]} Rfc8 {[%emt 0:00:30]} 17. Rc2 {[%emt 0:00:30]} Bd7 {[%emt 0:00:30]} 18. Rhc1 {[%emt 0:00:30]} Kf8 {[%emt 0:00:30]} 19. Nb1 {[%emt 0:00:30]} Be6 {[%emt 0:00:30]} 20. a3 {[%emt 0:00:30]} Rc7 {[%emt 0:00:30]} 21. Ke3 {[%emt 0:00:30]} Rac8 {[%emt 0:00:30]} 22. Nd2 {[%emt 0:00:30]} Nd7 {[%emt 0:00:30]} 23. f4 {[%emt 0:00:30]} f6 {[%emt 0:00:30]} 24. Bd3 {[%emt 0:00:30]} Bf7 {[%emt 0:00:30]} 25. g3 {[%emt 0:00:30]} e5 {[%emt 0:00:30]} 26. Nf3 {[%emt 0:00:30]} h6 {[%emt 0:00:30]} 27. h4 {[%emt 0:00:30]} Ke7 {[%emt 0:00:30]} 28. Nd2 {[%emt 0:00:30]} Nb6 {[%emt 0:00:30]} 29. g4 {[%emt 0:00:30]} exf4+ {[%emt 0:00:30]} 30. Kxf4 {[%emt 0:00:30]} g5+ {[%emt 0:00:30]} 31. hxg5 {[%emt 0:00:30]} hxg5+ {[%emt 0:00:30]} 32. Kg3 {[%emt 0:00:30]} Nd7 {[%emt 0:00:30]} 33. Nf3 {[%emt 0:00:30]} Ne5 {[%emt 0:00:30]} 34. Nxe5 {[%emt 0:00:30]} fxe5 {[%emt 0:00:30]} 35. Be2 {[%emt 0:00:30]} b6 {[%emt 0:00:30]} 36. a4 {[%emt 0:00:30]} Rc6 {[%emt 0:00:30]} 37. Bd3 {[%emt 0:00:30]} R8c7 {[%emt 0:00:30]} 38. c5 {[%emt 0:00:30]} dxc5 {[%emt 0:00:30]} 39. Bb5 {[%emt 0:00:30]} Rd6 {[%emt 0:00:30]} 40. bxc5 {[%emt 0:00:30]} bxc5 {[%emt 0:00:30]} 41. Rxc5 {[%emt 0:00:30]} Rxc5 {[%emt 0:00:30]} 42. Rxc5 {[%emt 0:00:30]} Kf6 {[%emt 0:00:30]} 43. a5 {[%emt 0:00:30]} a6 {[%emt 0:00:30]} 44. Be2 {[%emt 0:00:30]} 1-0

[Event "2nd Namma Bengaluru Open-A 2025"]
[Site "Bengaluru"]
[Date "2025.04.10"]
[Round "1.29"]
[White "Kavinda, Akila"]
[Black "Vignesh B"]
[Result "0-1"]
[Annotator "ChessBase"]
[ECO "E18"]
[WhiteElo "2008"]
[BlackElo "2191"]
[PlyCount "64"]
[EventDate "2025.04.10"]
[EventType "swiss"]
[EventCountry "IND"]
[SourceTitle "playchess.com"]
[Source "ChessBase"]
[SourceQuality "1"]
[TimeControl "5400+30"]

1. Nf3 e6 {[%emt 0:00:00]} 2. g3 {[%emt 0:02:24]} d5 {[%emt 0:00:06]} 3. Bg2 {[%emt 0:00:30]} Nf6 {[%emt 0:00:30]} 4. O-O {[%emt 0:00:30]} b6 {[%emt 0:00:30]} 5. d4 {[%emt 0:00:30]} Be7 {[%emt 0:00:30]} 6. c4 {[%emt 0:00:30]} O-O {[%emt 0:00:30]} 7. Nc3 {[%emt 0:00:30]} Bb7 {[%emt 0:00:30]} 8. Ne5 {[%emt 0:00:30]} Ne4 {[%emt 0:00:30]} 9. cxd5 {[%emt 0:00:30]} Nxc3 {[%emt 0:00:30]} 10. bxc3 {[%emt 0:00:30]} Bxd5 {[%emt 0:00:30]} 11. e4 {[%emt 0:00:30]} Bb7 {[%emt 0:00:30]} 12. Qg4 {[%emt 0:00:30]} Kh8 {[%emt 0:00:30]} 13. f4 {[%emt 0:00:30]} Nd7 {[%emt 0:00:30]} 14. Qe2 {[%emt 0:00:30]} a5 {[%emt 0:00:30]} 15. Rf2 {[%emt 0:00:30]} c5 {[%emt 0:00:30]} 16. Nxd7 {[%emt 0:00:30]} Qxd7 {[%emt 0:00:30]} 17. Be3 {[%emt 0:00:30]} cxd4 {[%emt 0:00:30]} 18. Bxd4 {[%emt 0:00:30]} b5 {[%emt 0:00:30]} 19. Rd1 {[%emt 0:00:30]} Qe8 {[%emt 0:00:30]} 20. Qg4 {[%emt 0:00:30]} Rg8 {[%emt 0:00:30]} 21. f5 {[%emt 0:00:30]} exf5 {[%emt 0:00:30]} 22. Qxf5 {[%emt 0:00:30]} f6 {[%emt 0:00:30]} 23. Rf4 {[%emt 0:00:30]} Bc8 {[%emt 0:00:30]} 24. Qd5 {[%emt 0:00:30]} Ra6 {[%emt 0:00:30]} 25. Bf1 {[%emt 0:00:30]} Bd7 {[%emt 0:00:30]} 26. e5 {[%emt 0:00:30]} fxe5 {[%emt 0:00:30]} 27. Qb7 {[%emt 0:00:30]} Rh6 {[%emt 0:00:30]} 28. Rd3 {[%emt 0:00:30]} Bg5 {[%emt 0:00:30]} 29. Rf2 {[%emt 0:00:30]} Bf4 {[%emt 0:00:30]} 30. Rxf4 {[%emt 0:00:30]} Bc6 {[%emt 0:00:30]} 31. Qc7 {[%emt 0:00:30]} Qe6 {[%emt 0:00:30]} 32. Rf2 {[%emt 0:00:30]} g5 {[%emt 0:00:30]} 0-1

[Event "2nd Namma Bengaluru Open-A 2025"]
[Site "Bengaluru"]
[Date "2025.04.10"]
[Round "1.30"]
[White "Viani Antonio Dcunha"]
[Black "Nishant Abhijeet Jawalkar"]
[Result "1-0"]
[Annotator "RC"]
[ECO "D52"]
[WhiteElo "2378"]
[BlackElo "2008"]
[PlyCount "102"]
[EventDate "2025.04.10"]
[EventType "swiss"]
[EventCountry "IND"]
[SourceTitle "playchess.com"]
[Source "ChessBase"]
[SourceQuality "1"]
[TimeControl "5400+30"]

1. d4 {[%emt 1:31:00]} d5 2. c4 e6 3. Nc3 Nf6 4. Nf3 c6 5. Bg5 Nbd7 6. e3 Qa5 7. Nd2 dxc4 8. Bxf6 Nxf6 9. Nxc4 Qc7 10. Be2 Be7 11. O-O O-O 12. Rc1 Bd7 13. e4 b5 14. Nd2 b4 15. Na4 e5 16. Nc5 Rfd8 17. dxe5 Qxe5 18. Nd3 Qc7 19. Qc2 Rac8 20. e5 Nd5 21. Bf3 Be6 22. Ne4 a5 23. Nec5 Bxc5 24. Qxc5 Bf5 25. Rfd1 {[%emt 0:12:00]} g6 {[%emt 1:43:00]} 26. g3 {[%emt 0:00:30]} Bxd3 {[%emt 0:00:30]} 27. Rxd3 {[%emt 0:00:30]} Qxe5 {[%emt 0:00:30]} 28. Qxa5 {[%emt 0:00:30]} Re8 {[%emt 0:00:30]} 29. Rd2 {[%emt 0:00:30]} h5 {[%emt 0:00:30]} 30. h4 {[%emt 0:00:30]} Kg7 {[%emt 0:00:30]} 31. Qc5 {[%emt 0:00:30]} Qf5 {[%emt 0:00:30]} 32. Kg2 {[%emt 0:00:30]} Rcd8 {[%emt 0:00:30]} 33. Bxd5 {[%emt 0:00:30]} Rxd5 {[%emt 0:00:30]} 34. Qxb4 {[%emt 0:00:30]} Rb8 {[%emt 0:00:30]} 35. Qc3+ {[%emt 0:00:30]} Kh7 {[%emt 0:00:30]} 36. Rdc2 {[%emt 0:00:30]} Rdb5 {[%emt 0:00:30]} 37. b3 {[%emt 0:00:30]} c5 {[%emt 0:00:30]} 38. Qf3 {[%emt 0:00:30]} Qxf3+ {[%emt 0:00:30]} 39. Kxf3 {[%emt 0:00:30]} Ra8 {[%emt 0:00:30]} 40. Rxc5 {[%emt 0:00:30]} Rxc5 {[%emt 0:00:30]} 41. Rxc5 {[%emt 0:00:30]} Rxa2 {[%emt 0:00:30]} 42. Ke3 {[%emt 0:00:30]} Kg7 {[%emt 0:00:30]} 43. Rc3 {[%emt 0:00:30]} Kf6 {[%emt 0:00:30]} 44. f4 {[%emt 0:00:30]} Kf5 {[%emt 0:00:30]} 45. Kd4 {[%emt 0:00:30]} Ke6 {[%emt 0:00:30]} 46. Kc5 {[%emt 0:00:30]} Kd7 {[%emt 0:00:30]} 47. b4 {[%emt 0:00:30]} Ra8 {[%emt 0:00:30]} 48. b5 {[%emt 0:00:30]} Kc7 {[%emt 0:00:30]} 49. Re3 {[%emt 0:00:30]} Rf8 {[%emt 0:00:30]} 50. Re7+ {[%emt 0:00:30]} Kb8 {[%emt 0:00:30]} 51. Kb6 {[%emt 0:00:30]} f5 {[%emt 0:00:30]} 1-0